bitfinex-derivatives/quotes_BTCF0:USTF0_20241117
["timestamp","ask_amount","ask_price","bid_price","bid_amount"]
[1731803696886,0.18858353,90861.0,90855.0,0.055001]
[1731803697066,0.13358553,90861.0,90855.0,0.055001]
[1731803697263,0.054999,90860.0,90855.0,0.055001]
[1731803697469,0.055,90859.0,90855.0,0.055001]
[1731803697664,0.055001,90856.0,90852.0,0.19595532]
[1731803697885,0.055003,90854.0,90852.0,0.19595532]
[1731803698074,0.3608,90858.0,90850.0,0.0317]
[1731803698075,0.055004,90852.0,90850.0,0.22765532]
[1731803698475,0.055004,90852.0,90851.0,0.11006246]
[1731803698871,0.055004,90852.0,90848.0,0.08832]
[1731803699278,0.13184397,90856.0,90849.0,0.11007033]
[1731803699580,0.3608,90858.0,90849.0,0.11007033]
[1731803699581,0.055005,90851.0,90849.0,0.11007033]
[1731803700585,0.055005,90851.0,90849.0,0.19595532]
[1731803700887,0.3608,90850.0,90848.0,0.055006]
[1731803701273,0.3608,90850.0,90848.0,0.25096132]
[1731803701469,0.3608,90850.0,90849.0,0.11007154]
[1731803702979,0.3608,90850.0,90848.0,0.19601619]
[1731803703183,0.3608,90850.0,90848.0,0.25102219]
[1731803703869,0.3608,90850.0,90848.0,0.055006]
[1731803704387,0.3608,90850.0,90849.0,0.11007275]
[1731803704983,0.3608,90850.0,90849.0,0.37132701]
[1731803705287,0.13184397,90860.0,90849.0,0.11007275]
[1731803705585,0.13358553,90861.0,90859.0,0.055]
[1731803705793,0.13358553,90861.0,90860.0,0.08832]
[1731803705973,0.13358553,90861.0,90860.0,0.34990036]
[1731803705974,0.00174156,90861.0,90860.0,0.34990036]
[1731803706175,0.00174156,90861.0,90860.0,0.19838609]
[1731803706676,9.039e-05,90861.0,90860.0,0.83934292]
[1731803707073,9.039e-05,90861.0,90860.0,0.85514079]
[1731803707282,9.039e-05,90861.0,90860.0,1.16603025]
[1731803707477,9.039e-05,90861.0,90860.0,0.83943555]
[1731803708074,3.79e-06,90861.0,90860.0,1.13952215]
[1731803708581,3.79e-06,90861.0,90860.0,1.56278875]
[1731803709174,3.79e-06,90861.0,90860.0,1.19374139]
[1731803710381,3.79e-06,90861.0,90860.0,1.1924713]
[1731803711692,3.79e-06,90861.0,90860.0,0.88285193]
[1731803715582,3.79e-06,90861.0,90860.0,1.07858737]
[1731803715789,3.79e-06,90861.0,90860.0,0.58285193]
[1731803716006,3.79e-06,90861.0,90860.0,0.16437193]
[1731803716293,3.79e-06,90861.0,90860.0,0.25269193]
[1731803716499,3.79e-06,90861.0,90860.0,0.16437193]
[1731803716683,0.05500179,90861.0,90860.0,0.25269193]
[1731803717088,3.79e-06,90861.0,90860.0,0.25269193]
[1731803718793,3.79e-06,90861.0,90860.0,0.30769093]
[1731803719184,0.05500179,90861.0,90860.0,0.25269193]
[1731803719392,3.79e-06,90861.0,90860.0,0.25201193]
[1731803719589,0.03150379,90861.0,90860.0,0.30701093]
[1731803719985,0.03150379,90861.0,90860.0,0.21937093]
[1731803720184,0.03150379,90861.0,90860.0,0.30701093]
[1731803721193,0.03150379,90861.0,90860.0,0.21937093]
[1731803721398,0.03150379,90861.0,90860.0,0.30701093]
[1731803723418,3.79e-06,90861.0,90860.0,0.30701093]
[1731803724093,3.79e-06,90861.0,90860.0,0.36981093]
[1731803724400,3.79e-06,90861.0,90860.0,0.68131614]
[1731803724601,3.79e-06,90861.0,90860.0,1.00774168]
[1731803724804,3.79e-06,90861.0,90860.0,0.36981093]
[1731803725290,3.79e-06,90861.0,90860.0,1.04231568]
[1731803725490,0.0321,90881.0,90875.0,0.05499]
[1731803725716,0.0321,90881.0,90879.0,0.054987]
[1731803726395,0.0321,90881.0,90880.0,0.11004066]
[1731803727399,0.0322,90893.0,90890.0,0.05498]
[1731803727597,0.0322,90893.0,90880.0,0.11004066]
[1731803727598,0.0322,90893.0,90891.0,0.05498]
[1731803728890,0.0322,90893.0,90892.0,0.11002128]
[1731803730802,0.0322,90893.0,90892.0,0.21579025]
[1731803731401,0.0322,90893.0,90892.0,0.22610397]
[1731803731599,0.0619,90897.0,90893.0,0.054979]
[1731803731807,0.0619,90897.0,90896.0,0.054977]
[1731803732197,0.0619,90897.0,90896.0,0.17531047]
[1731803733302,0.0619,90897.0,90896.0,0.16499707]
[1731803733524,0.0619,90897.0,90896.0,0.16968925]
[1731803736204,0.03,90897.0,90896.0,0.16968925]
[1731803741115,0.03,90897.0,90896.0,0.11471225]
[1731803741300,0.03,90897.0,90896.0,0.20235225]
[1731803741812,0.03,90897.0,90896.0,0.00469218]
[1731803741813,0.084977,90897.0,90896.0,0.00469218]
[1731803742013,0.054983,90888.0,90883.0,0.08764]
[1731803742215,0.0305,90887.0,90884.0,0.01031424]
[1731803742414,0.0305,90887.0,90885.0,0.01031424]
[1731803742610,0.0305,90887.0,90879.0,0.10933175]
[1731803742611,0.0305,90887.0,90886.0,0.01031424]
[1731803743008,0.0305,90887.0,90886.0,0.12032947]
[1731803743215,0.13144991,90896.0,90892.0,0.054979]
[1731803743515,0.03,90897.0,90893.0,0.01031424]
[1731803743721,0.03,90897.0,90892.0,0.16074797]
[1731803743920,0.16144991,90897.0,90894.0,0.11002794]
[1731803744112,0.03,90897.0,90892.0,0.16074797]
[1731803744315,0.03,90897.0,90893.0,0.11001705]
[1731803744615,0.03,90897.0,90894.0,0.054978]
[1731803745320,0.03,90897.0,90895.0,0.11001705]
[1731803745918,0.03,90897.0,90896.0,0.01031365]
[1731803746519,0.03,90897.0,90896.0,0.11001584]
[1731803747017,0.03,90897.0,90893.0,0.142619]
[1731803747217,0.03,90897.0,90894.0,0.12032901]
[1731803747412,0.03,90897.0,90895.0,0.01031378]
[1731803747613,0.03,90897.0,90894.0,0.16499323]
[1731803747822,0.03,90897.0,90895.0,0.01031387]
[1731803748019,0.03,90897.0,90895.0,0.11001584]
[1731803748220,0.03,90897.0,90896.0,0.01031387]
[1731803748414,0.03,90897.0,90895.0,0.11001584]
[1731803748717,0.03,90897.0,90895.0,0.054977]
[1731803748920,0.03,90897.0,90895.0,0.16499284]
[1731803749124,0.03,90897.0,90895.0,0.054977]
[1731803749313,0.16144991,90897.0,90896.0,0.11001584]
[1731803749713,0.03,90897.0,90896.0,0.11001584]
[1731803749926,0.03,90897.0,90893.0,0.08764]
[1731803750111,0.3608,90894.0,90893.0,0.08764]
[1731803750316,0.054979,90893.0,90889.0,0.054981]
[1731803750827,0.05498,90891.0,90890.0,0.11001523]
[1731803751132,0.05498,90891.0,90884.0,0.141584]
[1731803751512,0.05498,90891.0,90886.0,0.11002189]
[1731803751718,0.05498,90891.0,90888.0,0.054982]
[1731803752021,0.3608,90894.0,90890.0,0.054981]
[1731803752228,0.415779,90894.0,90890.0,0.054981]
[1731803752420,0.13144991,90897.0,90892.0,0.10576897]
[1731803752620,0.1,90900.0,90897.0,0.054977]
[1731803752820,0.1,90900.0,90898.0,0.054976]
[1731803753221,0.23144991,90900.0,90898.0,0.16499365]
[1731803753423,0.23144991,90900.0,90898.0,0.054976]
[1731803753424,0.1,90900.0,90898.0,0.054976]
[1731803753932,0.23144991,90900.0,90898.0,0.054976]
[1731803754231,0.13144991,90899.0,90898.0,0.054976]
[1731803755130,0.1318166,90899.0,90898.0,0.054976]
[1731803755342,0.1,90900.0,90898.0,0.054976]
[1731803756426,0.1,90900.0,90899.0,0.01031367]
[1731803756828,0.2318166,90900.0,90899.0,0.01031367]
[1731803757327,0.1,90900.0,90899.0,0.01031367]
[1731803761135,0.2318166,90900.0,90899.0,0.01031367]
[1731803761334,0.1,90900.0,90899.0,0.01031367]
[1731803761641,0.2318166,90900.0,90899.0,0.01031367]
[1731803761829,0.1,90900.0,90899.0,0.01031367]
[1731803762229,0.2318166,90900.0,90899.0,0.01031367]
[1731803762429,0.1,90900.0,90899.0,0.01031367]
[1731803762927,0.2318166,90900.0,90899.0,0.01031367]
[1731803763641,0.2318166,90900.0,90899.0,0.12032527]
[1731803764142,0.1,90900.0,90899.0,0.1100116]
[1731803764338,0.1,90900.0,90899.0,0.12032499]
[1731803764636,0.1,90900.0,90899.0,0.4224047]
[1731803764834,0.1,90900.0,90899.0,0.22615104]
[1731803765627,0.03812589,90900.0,90899.0,0.22615104]
[1731803765840,0.1699425,90900.0,90899.0,0.22615104]
[1731803766032,0.03812589,90900.0,90899.0,0.22615104]
[1731803766330,0.1699425,90900.0,90899.0,0.22615104]
[1731803766734,0.03812589,90900.0,90899.0,0.22615104]
[1731803769034,0.16990169,90900.0,90899.0,0.22615104]
[1731803769239,0.03812589,90900.0,90899.0,0.22615104]
[1731803770431,0.03812589,90900.0,90899.0,0.55619104]
[1731803771537,0.03812589,90900.0,90899.0,0.74217686]
[1731803771741,0.03812589,90900.0,90899.0,0.55618955]
[1731803771937,0.03812589,90900.0,90899.0,0.54587765]
[1731803772449,0.03812589,90900.0,90899.0,0.55618956]
[1731803772649,0.03812589,90900.0,90899.0,0.54587765]
[1731803773348,0.03812589,90900.0,90899.0,0.87227255]
[1731803773536,0.03812589,90900.0,90899.0,0.88258438]
[1731803773733,0.03812589,90900.0,90899.0,1.19048212]
[1731803773940,0.03812589,90900.0,90899.0,1.19132482]
[1731803774140,0.03812589,90900.0,90899.0,0.88258438]
[1731803774743,0.03812589,90900.0,90899.0,0.56086768]
[1731803775254,0.03812589,90900.0,90899.0,0.23082768]
[1731803775751,0.03812589,90900.0,90899.0,0.22614948]
[1731803776046,0.03812589,90900.0,90899.0,0.24814795]
[1731803776946,0.03812589,90900.0,90899.0,0.57818795]
[1731803777148,0.03812589,90900.0,90899.0,0.24814795]
[1731803777736,0.03812589,90900.0,90899.0,0.91828472]
[1731803778647,0.00013327,90901.0,90900.0,0.054975]
[1731803778852,0.00013327,90901.0,90900.0,0.3746236]
[1731803779455,0.00013327,90901.0,90900.0,0.48463399]
[1731803779636,0.00013327,90901.0,90900.0,0.26321722]
[1731803780649,0.00013327,90901.0,90900.0,0.25290539]
[1731803781239,0.00013327,90901.0,90900.0,0.35867436]
[1731803781447,0.00013327,90901.0,90900.0,0.25290539]
[1731803781657,0.00013327,90901.0,90900.0,0.52416096]
[1731803781851,0.00013327,90901.0,90900.0,0.26321661]
[1731803782158,0.00013327,90901.0,90900.0,0.2679034]
[1731803782659,0.00013327,90901.0,90900.0,0.5287754]
[1731803783168,0.00013327,90901.0,90900.0,0.2679034]
[1731803783461,0.00013327,90901.0,90900.0,0.52879039]
[1731803783845,0.00013327,90901.0,90900.0,0.5241036]
[1731803784050,0.00013327,90901.0,90900.0,0.26321661]
[1731803784756,0.00013327,90901.0,90900.0,0.26790259]
[1731803785270,0.00013327,90901.0,90900.0,0.5288166]
[1731803785855,0.00013327,90901.0,90900.0,0.26321661]
[1731803786162,0.00013327,90901.0,90900.0,0.52882234]
[1731803786363,0.00013327,90901.0,90900.0,0.44090234]
[1731803786553,0.00013327,90901.0,90900.0,0.26790833]
[1731803786759,0.00013327,90901.0,90900.0,0.57012585]
[1731803787068,0.00013327,90901.0,90900.0,0.26321661]
[1731803788958,0.00013327,90901.0,90900.0,0.52428942]
[1731803789161,0.00013327,90901.0,90900.0,0.26321661]
[1731803790868,0.00013327,90901.0,90900.0,0.38614227]
[1731803791065,0.00013327,90901.0,90900.0,0.32088665]
[1731803791369,0.00013327,90901.0,90900.0,0.1250169]
[1731803792057,0.00013327,90901.0,90900.0,0.1799919]
[1731803792481,0.00013327,90901.0,90900.0,0.17529661]
[1731803792765,0.00013327,90901.0,90900.0,0.18001244]
[1731803793873,0.0966,90909.0,90908.0,0.05497]
[1731803794070,0.0966,90909.0,90908.0,0.26591212]
[1731803794568,0.0966,90909.0,90908.0,0.16969622]
[1731803795069,0.0966,90909.0,90908.0,0.16498039]
[1731803795567,0.0966,90909.0,90908.0,0.42620048]
[1731803795779,0.0966,90909.0,90908.0,0.16498039]
[1731803796372,0.0966,90909.0,90908.0,0.4365408]
[1731803796373,0.0642,90909.0,90908.0,0.4365408]
[1731803796672,0.0642,90909.0,90908.0,0.22896403]
[1731803797760,0.0642,90909.0,90908.0,0.53664302]
[1731803798269,0.0642,90909.0,90908.0,0.86282227]
[1731803798459,0.0642,90909.0,90908.0,0.55548418]
[1731803798658,0.0642,90909.0,90908.0,0.22896403]
[1731803799263,0.0642,90909.0,90908.0,0.86253615]
[1731803799457,0.0642,90909.0,90908.0,0.55548418]
[1731803799773,0.0323,90909.0,90908.0,0.86286285]
[1731803799976,0.0315,90920.0,90918.0,0.054964]
[1731803799977,0.033,90919.0,90918.0,0.054964]
[1731803800179,0.033,90919.0,90918.0,0.06527491]
[1731803800476,0.033,90919.0,90918.0,0.32639959]
[1731803800662,0.033,90919.0,90918.0,0.17527562]
[1731803802373,0.0315,90920.0,90919.0,0.054963]
[1731803802580,0.0315,90920.0,90919.0,0.26107089]
[1731803802965,0.0315,90920.0,90919.0,0.3710595]
[1731803803164,0.0309,90923.0,90922.0,0.054961]
[1731803803367,0.0309,90923.0,90922.0,0.06527191]
[1731803803878,0.0309,90923.0,90922.0,0.17525931]
[1731803804475,0.0309,90923.0,90922.0,0.1649484]
[1731803805282,0.0309,90923.0,90922.0,0.17525863]
[1731803805581,0.0309,90923.0,90922.0,0.2305469]
[1731803808278,0.1971758,90930.0,90928.0,0.054958]
[1731803808482,0.0304,90929.0,90928.0,0.054958]
[1731803808980,0.0304,90929.0,90928.0,0.16494177]
[1731803809481,0.0304,90929.0,90928.0,0.10998377]
[1731803809667,0.0304,90929.0,90928.0,0.12029422]
[1731803809869,0.0304,90929.0,90928.0,0.06526845]
[1731803810073,0.0304,90929.0,90928.0,0.17524497]
[1731803812577,0.085357,90929.0,90928.0,0.17524497]
[1731803813175,0.085357,90929.0,90928.0,0.16493452]
[1731803813381,0.085357,90929.0,90892.0,0.00096]
[1731803813382,0.054958,90927.0,90926.0,0.054959]
[1731803814071,0.1867338,90927.0,90926.0,0.054959]
[1731803814273,0.054958,90927.0,90926.0,0.054959]
[1731803816287,0.1621758,90929.0,90917.0,0.08684]
[1731803816490,0.1621758,90929.0,90928.0,0.054958]
[1731803816491,0.2171328,90929.0,90928.0,0.054958]
[1731803816875,0.2171328,90929.0,90917.0,0.08684]
[1731803816876,0.08385901,90929.0,90917.0,0.08684]
[1731803817083,0.3608,90922.0,90921.0,0.054962]
[1731803817892,0.3608,90922.0,90921.0,0.17525]
[1731803817893,0.46922087,90922.0,90921.0,0.17525]
[1731803818079,0.46922087,90922.0,90921.0,0.16493852]
[1731803818384,0.054964,90918.0,90917.0,0.054964]
[1731803818580,0.10842387,90918.0,90917.0,0.06527599]
[1731803818982,0.10842387,90918.0,90913.0,0.08684]
[1731803819187,0.16456332,90915.0,90914.0,0.054966]
[1731803819601,0.16456332,90915.0,90914.0,0.16495582]
[1731803820087,0.16456332,90916.0,90915.0,0.054966]
[1731803820686,0.21952832,90916.0,90915.0,0.10999345]
[1731803820989,0.30591054,90916.0,90915.0,0.054966]
[1731803821503,0.3059869,90916.0,90915.0,0.054966]
[1731803821890,0.3059869,90916.0,90915.0,0.16495824]
[1731803821891,0.2510219,90916.0,90915.0,0.16495824]
[1731803822296,0.05346506,90916.0,90915.0,0.16495824]
[1731803822592,0.16463711,90916.0,90915.0,0.16495824]
[1731803822795,0.16463711,90917.0,90916.0,0.054965]
[1731803822981,0.3608,90921.0,90917.0,0.054964]
[1731803822982,0.16463711,90918.0,90917.0,0.054964]
[1731803823181,0.16463711,90920.0,90919.0,0.054963]
[1731803823387,0.16463711,90920.0,90919.0,0.141803]
[1731803823785,0.3608,90921.0,90920.0,0.054963]
[1731803824098,0.41425927,90921.0,90920.0,0.054963]
[1731803824284,0.41425863,90921.0,90920.0,0.054963]
[1731803824593,0.41425863,90921.0,90920.0,0.16494919]
[1731803824789,0.05345863,90921.0,90920.0,0.16494919]
[1731803824982,0.13173465,90928.0,90920.0,0.10998619]
[1731803825384,0.13173465,90927.0,90922.0,0.054961]
[1731803826201,0.13173465,90927.0,90923.0,0.10998619]
[1731803826385,0.054959,90926.0,90923.0,0.16494719]
[1731803826699,0.13173465,90927.0,90924.0,0.05496]
[1731803826895,0.13173465,90927.0,90920.0,0.19579698]
[1731803827092,0.13173465,90927.0,90924.0,0.10998135]
[1731803827293,0.13173465,90927.0,90920.0,0.054963]
[1731803827294,0.13176308,90927.0,90920.0,0.054963]
[1731803827499,0.13176308,90927.0,90921.0,0.10998014]
[1731803827694,0.13176308,90927.0,90926.0,0.054959]
[1731803828294,0.13176308,90928.0,90927.0,0.054958]
[1731803828488,0.0332,90930.0,90927.0,0.054958]
[1731803828689,0.13176713,90928.0,90927.0,0.054958]
[1731803828884,0.13176713,90928.0,90922.0,0.054961]
[1731803829093,0.13176713,90928.0,90923.0,0.01031082]
[1731803829296,0.054958,90928.0,90927.0,0.10997772]
[1731803829593,0.054962,90921.0,90920.0,0.19579698]
[1731803829783,0.054961,90922.0,90920.0,0.01031104]
[1731803829985,0.18673138,90922.0,90921.0,0.01031104]
[1731803830195,0.054962,90921.0,90916.0,0.054965]
[1731803830398,0.054962,90921.0,90917.0,0.01031155]
[1731803830399,0.054963,90920.0,90917.0,0.01031155]
[1731803830590,0.054963,90920.0,90918.0,0.01031155]
[1731803830785,0.054963,90920.0,90919.0,0.06527455]
[1731803830990,0.054963,90920.0,90919.0,0.01031155]
[1731803831395,0.054968,90911.0,90910.0,0.19579698]
[1731803831697,0.054969,90910.0,90903.0,0.19579698]
[1731803831995,0.47013872,90910.0,90900.0,0.054975]
[1731803832293,0.66774087,90910.0,90901.0,0.054974]
[1731803832697,0.66774087,90910.0,90899.0,5.708e-05]
[1731803833393,0.41516972,90910.0,90899.0,5.708e-05]
[1731803833596,0.1866637,90901.0,90900.0,0.01031345]
[1731803833798,0.1866637,90901.0,90900.0,0.12031295]
[1731803833997,0.054974,90901.0,90900.0,0.12031295]
[1731803834187,0.054974,90901.0,90900.0,0.01031345]
[1731803834387,0.087774,90901.0,90900.0,0.01031345]
[1731803834896,0.087774,90901.0,90899.0,5.708e-05]
[1731803835488,0.14222272,90901.0,90899.0,5.708e-05]
[1731803835905,0.14222272,90901.0,90899.0,0.05503208]
[1731803836403,0.14222272,90901.0,90899.0,5.708e-05]
[1731803836589,0.16461213,90900.0,90899.0,5.708e-05]
[1731803836785,0.08607532,90900.0,90899.0,5.708e-05]
[1731803837389,0.41611532,90900.0,90899.0,5.708e-05]
[1731803837597,0.41611762,90900.0,90884.0,0.00165052]
[1731803837802,0.41611762,90900.0,90883.0,0.054985]
[1731803837803,0.415784,90885.0,90883.0,0.054985]
[1731803838102,0.54734134,90885.0,90883.0,0.054985]
[1731803838301,0.3608,90885.0,90884.0,0.1100116]
[1731803838688,0.3608,90885.0,90884.0,0.11014487]
[1731803842104,0.3608,90885.0,90884.0,0.00013327]
[1731803847117,0.69088,90885.0,90884.0,0.00013327]
[1731803848820,0.76024699,90885.0,90884.0,0.00013327]
[1731803849014,0.43016699,90885.0,90884.0,0.00013327]
[1731803850712,0.3608,90885.0,90884.0,0.00013327]
[1731803850906,0.3608,90885.0,90884.0,0.11016303]
[1731803853811,0.3608,90885.0,90884.0,0.22778163]
[1731803856025,0.3608,90885.0,90884.0,0.17316303]
[1731803858721,0.3608,90889.0,90884.0,0.22814703]
[1731803859119,0.3608,90889.0,90884.0,0.17316303]
[1731803859323,0.3608,90889.0,90885.0,0.054983]
[1731803859824,0.3608,90889.0,90886.0,0.01031494]
[1731803860031,0.3608,90889.0,90887.0,0.01031494]
[1731803860440,0.3608,90889.0,90888.0,0.01031485]
[1731803860732,0.3608,90889.0,90888.0,0.12034098]
[1731803860933,0.3608,90889.0,90888.0,0.01031485]
[1731803861154,0.415781,90889.0,90888.0,0.01031485]
[1731803861424,0.415781,90889.0,90884.0,0.00013327]
[1731803861615,0.415781,90889.0,90885.0,0.01031518]
[1731803861815,0.054982,90888.0,90886.0,0.01031518]
[1731803862219,0.054984,90885.0,90884.0,0.00013327]
[1731803862718,0.18671988,90885.0,90884.0,0.00013327]
[1731803862919,0.054984,90885.0,90884.0,0.00013327]
[1731803863125,0.54951067,90885.0,90884.0,0.00013327]
[1731803863326,0.43855106,90885.0,90884.0,0.00013327]
[1731803863920,0.43855106,90885.0,90884.0,8.92e-06]
[1731803864329,0.49493554,90885.0,90884.0,8.92e-06]
[1731803865126,0.54842353,90885.0,90884.0,8.92e-06]
[1731803865322,0.54842353,90885.0,90868.0,0.054994]
[1731803865323,0.49493647,90885.0,90868.0,0.054994]
[1731803865528,0.3608,90869.0,90868.0,0.054994]
[1731803866029,0.3608,90869.0,90868.0,0.16502376]
[1731803866219,0.3608,90869.0,90868.0,0.11002976]
[1731803878641,0.054993,90870.0,90868.0,0.11002976]
[1731803878834,0.054993,90869.0,90868.0,0.11002976]
[1731803880440,0.054995,90866.0,90865.0,0.08588]
[1731803880640,0.054995,90866.0,90865.0,0.140876]
[1731803881035,0.054995,90866.0,90865.0,0.25092513]
[1731803882745,0.054995,90866.0,90865.0,0.16504513]
[1731803882952,0.054995,90866.0,90865.0,0.25092513]
[1731803883668,0.1243673,90866.0,90865.0,0.19592913]
[1731803883947,0.1243673,90866.0,90858.0,0.0304]
[1731803883948,0.055,90859.0,90858.0,0.0304]
[1731803884247,0.055,90859.0,90858.0,0.11628]
[1731803884647,0.055,90859.0,90858.0,0.22634124]
[1731803885346,0.055,90859.0,90858.0,0.11006124]
[1731803885756,0.055,90859.0,90852.0,0.08588]
[1731803885757,0.055003,90853.0,90852.0,0.08588]
[1731803886438,0.055003,90853.0,90852.0,0.19594124]
[1731803888138,0.055003,90853.0,90852.0,0.11006124]
[1731803888538,0.055003,90853.0,90851.0,0.055004]
[1731803888738,0.055003,90853.0,90851.0,0.16507251]
[1731803889141,0.055003,90853.0,90851.0,0.055004]
[1731803889343,0.055003,90853.0,90852.0,0.11006851]
[1731803891338,0.055003,90853.0,90847.0,0.07649273]
[1731803891339,0.055005,90850.0,90847.0,0.05448688]
[1731803891555,0.0693723,90849.0,90845.0,0.11965864]
[1731803891739,0.0693723,90849.0,90848.0,0.11006851]
[1731803891947,0.0693723,90849.0,90845.0,0.11965864]
[1731803892346,0.1243783,90849.0,90846.0,0.11006851]
[1731803892552,0.13178894,90853.0,90847.0,0.0693723]
[1731803892738,0.13178894,90857.0,90852.0,0.0693723]
[1731803893053,0.3608,90860.0,90855.0,0.055002]
[1731803893436,0.3608,90860.0,90858.0,0.055]
[1731803893641,0.13178894,90862.0,90853.0,0.08588]
[1731803893843,0.13178894,90863.0,90856.0,0.11006609]
[1731803894044,0.13178894,90865.0,90859.0,0.054999]
[1731803894245,0.25615824,90864.0,90859.0,0.054999]
[1731803895039,0.13178894,90864.0,90860.0,0.110057]
[1731803895240,0.41744323,90872.0,90860.0,0.110057]
[1731803895241,0.13178894,90866.0,90864.0,0.054996]
[1731803895442,0.13178894,90866.0,90864.0,0.140876]
[1731803895752,0.41744323,90872.0,90868.0,0.054994]
[1731803895753,0.13178894,90870.0,90868.0,0.054994]
[1731803896053,0.13178894,90870.0,90864.0,0.1552523]
[1731803896054,0.36245123,90872.0,90870.0,0.054993]
[1731803897054,0.36245123,90872.0,90871.0,0.1100461]
[1731803897849,0.36245123,90872.0,90864.0,0.08588]
[1731803897850,0.054995,90868.0,90864.0,0.08588]
[1731803898052,0.0693723,90865.0,90864.0,0.08588]
[1731803898251,0.0693723,90865.0,90864.0,0.1959255]
[1731803898556,0.0693723,90865.0,90864.0,0.08588]
[1731803898757,0.0693723,90865.0,90864.0,0.19593398]
[1731803901354,0.0693723,90865.0,90864.0,0.19497398]
[1731803903251,0.0693723,90865.0,90852.0,0.26107236]
[1731803903448,0.055004,90852.0,90849.0,0.0332]
[1731803903651,0.0693723,90850.0,90849.0,0.0332]
[1731803904054,0.0693723,90850.0,90849.0,0.14325398]
[1731803904869,0.055004,90852.0,90849.0,0.14325398]
[1731803905460,0.055007,90846.0,90845.0,0.00165064]
[1731803906249,0.055007,90846.0,90845.0,0.11172158]
[1731803907354,0.10575021,90850.0,90846.0,0.055007]
[1731803907549,0.10575021,90850.0,90845.0,0.11172158]
[1731803907749,0.055007,90846.0,90845.0,0.00165064]
[1731803911867,0.055007,90846.0,90844.0,0.055009]
[1731803912057,0.13181009,90851.0,90834.0,0.13867103]
[1731803912263,0.0051,90851.0,90850.0,0.055005]
[1731803912458,0.3608,90853.0,90851.0,0.055004]
[1731803912860,0.415803,90853.0,90851.0,0.055004]
[1731803913057,0.3608,90853.0,90851.0,0.055004]
[1731803913265,0.13181009,90860.0,90853.0,0.055003]
[1731803913552,0.16473618,90864.0,90862.0,0.054998]
[1731803913553,0.13181009,90864.0,90862.0,0.054998]
[1731803913756,0.13181009,90866.0,90860.0,0.08496]
[1731803913969,0.18680509,90866.0,90864.0,0.054996]
[1731803914172,0.054995,90866.0,90864.0,0.054996]
[1731803914558,0.054995,90866.0,90865.0,0.11005337]
[1731803915976,0.3608,90867.0,90865.0,0.11005337]
[1731803916160,0.3608,90867.0,90866.0,0.054995]
[1731803918472,0.3608,90867.0,90860.0,0.08496]
[1731803918473,0.49261009,90867.0,90860.0,0.08496]
[1731803918873,0.3608,90867.0,90861.0,0.11005155]
[1731803919375,0.3608,90867.0,90866.0,0.054995]
[1731803920374,0.3608,90867.0,90866.0,0.16504958]
[1731803920655,0.00165123,90872.0,90869.0,0.054993]
[1731803920870,0.00165123,90872.0,90866.0,0.11005458]
[1731803921071,0.00165123,90872.0,90870.0,0.054993]
[1731803921274,0.00165123,90872.0,90871.0,0.0327]
[1731803921973,0.00165123,90872.0,90871.0,0.1427461]
[1731803923264,0.00165123,90872.0,90871.0,0.2276661]
[1731803926576,0.05664323,90872.0,90871.0,0.1427461]
[1731803926777,0.054997,90864.0,90860.0,0.08492]
[1731803926987,0.054997,90863.0,90860.0,0.08492]
[1731803927480,0.054994,90868.0,90862.0,0.054998]
[1731803928279,0.0974,90871.0,90864.0,0.054996]
[1731803928665,0.152392,90871.0,90864.0,0.054996]
[1731803928864,0.06937013,90869.0,90865.0,0.11005337]
[1731803929376,0.20118022,90869.0,90865.0,0.16504937]
[1731803929772,0.13181009,90869.0,90867.0,0.054995]
[1731803929974,0.00165123,90872.0,90870.0,0.054993]
[1731803929975,0.13346132,90872.0,90870.0,0.054993]
[1731803930370,0.00165123,90872.0,90871.0,0.11005095]
[1731803930575,0.13346132,90872.0,90871.0,0.11005095]
[1731803930881,0.00165123,90872.0,90871.0,0.11005095]
[1731803932784,0.00165123,90872.0,90871.0,0.19485095]
[1731803940591,0.00165123,90872.0,90871.0,0.22685095]
[1731803940996,8.344e-05,90877.0,90876.0,0.054989]
[1731803941184,8.344e-05,90877.0,90876.0,0.71756205]
[1731803941385,8.344e-05,90877.0,90876.0,0.52147298]
[1731803941594,8.344e-05,90877.0,90876.0,0.63151242]
[1731803942098,8.344e-05,90877.0,90876.0,0.7319118]
[1731803942281,0.23757751,90877.0,90865.0,0.26150779]
[1731803942486,0.23757751,90877.0,90857.0,0.19615036]
[1731803942487,0.055,90859.0,90857.0,0.19615036]
[1731803942686,0.055001,90857.0,90856.0,0.00165102]
[1731803950196,0.42576001,90858.0,90856.0,0.11171469]
[1731803950197,0.36136001,90858.0,90856.0,0.11171469]
[1731803950406,0.36136001,90858.0,90857.0,0.0312]
[1731803950407,0.3608,90858.0,90857.0,0.0312]
[1731803951089,0.3608,90858.0,90857.0,0.14126306]
[1731803952601,0.055001,90857.0,90856.0,0.00165102]
[1731803952807,0.150201,90857.0,90856.0,0.00165102]
[1731803958412,0.054999,90860.0,90856.0,0.11171469]
[1731803959703,0.055,90858.0,90856.0,0.11171469]
[1731803961912,0.3608,90863.0,90856.0,0.11171469]
[1731803962114,0.3608,90863.0,90856.0,0.16671569]
[1731803962309,0.3608,90863.0,90858.0,0.055]
[1731803962805,0.054997,90864.0,90858.0,0.055]
[1731803963011,0.054997,90864.0,90859.0,0.11006003]
[1731803963198,0.0051,90868.0,90859.0,0.11006003]
[1731803963400,0.3608,90871.0,90859.0,0.11006003]
[1731803963401,0.13166657,90869.0,90859.0,0.11006003]
[1731803963607,0.054996,90865.0,90856.0,0.00165102]
[1731803963808,0.13166657,90869.0,90856.0,0.00165102]
[1731803963809,0.054998,90863.0,90857.0,0.11005519]
[1731803964109,0.054999,90860.0,90857.0,0.11005519]
[1731803966107,0.054999,90860.0,90858.0,0.055]
[1731803966817,0.054999,90860.0,90859.0,0.11006064]
[1731803967613,0.13166657,90861.0,90860.0,0.054999]
[1731803967805,0.13166657,90862.0,90860.0,0.054999]
[1731803968212,0.13166657,90862.0,90861.0,0.11006003]
[1731803968404,0.3608,90863.0,90862.0,0.054998]
[1731803968604,0.13166657,90867.0,90865.0,0.054996]
[1731803968910,0.16473618,90874.0,90859.0,0.08516]
[1731803968911,0.13166657,90869.0,90859.0,0.08516]
[1731803969215,0.13166657,90869.0,90866.0,0.11005761]
[1731803969421,0.13166657,90868.0,90860.0,0.054999]
[1731803969604,0.13166657,90868.0,90860.0,0.11005761]
[1731803969804,0.13166657,90868.0,90866.0,0.054995]